[Event "Titled Tuesday Blitz March 15 Late 2022"]
[White "Gledura, Benjamin"]
[Black "Niemann, Hans Moke"]
[WhiteFideId "712779"]
[BlackFideId "2093596"]
[WhiteElo "2326"]
[BlackElo "2632"]
[Result "0-1"]
[Round "06"]
[TimeControl "180+1"]
[Date "2022.03.15"]
[WhiteClock "0:00:09"]
[BlackClock "0:00:45"]

1. Nf3 {[%clk 0:02:56]}  g6 {[%clk 0:03:00]} 2. d4 {[%clk 0:02:56]}  Bg7 {[%clk 0:03:01]} 3. e4 {[%clk 0:02:57]}  c6 {[%clk 0:03:01]} 4. Nc3 {[%clk 0:02:56]}  d5 {[%clk 0:03:01]} 5. h3 {[%clk 0:02:56]}  dxe4 {[%clk 0:03:01]} 6. Nxe4 {[%clk 0:02:56]}  Nf6 {[%clk 0:03:02]} 7. Nxf6+ {[%clk 0:02:56]}  exf6 {[%clk 0:03:03]} 8. Bc4 {[%clk 0:02:52]}  O-O {[%clk 0:03:04]} 9. O-O {[%clk 0:02:52]}  b5 {[%clk 0:03:04]} 10. Bb3 {[%clk 0:02:51]}  Nd7 {[%clk 0:03:05]} 11. c3 {[%clk 0:02:51]}  Nb6 {[%clk 0:03:06]} 12. Re1 {[%clk 0:02:50]}  a5 {[%clk 0:03:06]} 13. Bc2 {[%clk 0:02:45]}  a4 {[%clk 0:03:06]} 14. Bd2 {[%clk 0:02:34]}  Be6 {[%clk 0:03:06]} 15. b3 {[%clk 0:02:33]}  Re8 {[%clk 0:03:04]} 16. Rb1 {[%clk 0:02:26]}  Bf8 {[%clk 0:03:01]} 17. Be4 {[%clk 0:02:23]}  Qd7 {[%clk 0:02:57]} 18. Qc2 {[%clk 0:02:20]}  Ra6 {[%clk 0:02:51]} 19. Nh2 {[%clk 0:02:03]}  f5 {[%clk 0:02:39]} 20. Bd3 {[%clk 0:02:01]}  Rea8 {[%clk 0:02:37]} 21. b4 {[%clk 0:01:58]}  f6 {[%clk 0:02:35]} 22. Re2 {[%clk 0:01:56]}  Re8 {[%clk 0:02:33]} 23. Rbe1 {[%clk 0:01:56]}  Raa8 {[%clk 0:02:32]} 24. Nf1 {[%clk 0:01:53]}  Qf7 {[%clk 0:02:32]} 25. a3 {[%clk 0:01:52]}  Bb3 {[%clk 0:02:31]} 26. Qb1 {[%clk 0:01:50]}  Nc4 {[%clk 0:02:30]} 27. Bc1 {[%clk 0:01:50]}  Nb6 {[%clk 0:02:26]} 28. Nd2 {[%clk 0:01:47]}  Bd5 {[%clk 0:02:25]} 29. Nf1 {[%clk 0:01:46]}  Bd6 {[%clk 0:02:23]} 30. Qc2 {[%clk 0:01:38]}  Bb3 {[%clk 0:02:21]} 31. Rxe8+ {[%clk 0:01:38]}  Rxe8 {[%clk 0:02:20]} 32. Rxe8+ {[%clk 0:01:38]}  Qxe8 {[%clk 0:02:21]} 33. Qe2 {[%clk 0:01:38]}  Qf7 {[%clk 0:02:16]} 34. Nd2 {[%clk 0:01:34]}  Bd5 {[%clk 0:02:15]} 35. Nf1 {[%clk 0:01:32]}  Qe6 {[%clk 0:02:10]} 36. Qxe6+ {[%clk 0:01:31]}  Bxe6 {[%clk 0:02:11]} 37. f3 {[%clk 0:01:32]}  Kf7 {[%clk 0:02:11]} 38. Kf2 {[%clk 0:01:32]}  f4 {[%clk 0:02:11]} 39. Nd2 {[%clk 0:01:29]}  f5 {[%clk 0:02:12]} 40. Bc2 {[%clk 0:01:11]}  Bd5 {[%clk 0:02:08]} 41. Ke2 {[%clk 0:01:07]}  Kf6 {[%clk 0:02:07]} 42. Nf1 {[%clk 0:01:03]}  Bc4+ {[%clk 0:02:07]} 43. Ke1 {[%clk 0:01:02]}  g5 {[%clk 0:02:06]} 44. Nd2 {[%clk 0:01:01]}  Bd5 {[%clk 0:02:06]} 45. Nf1 {[%clk 0:01:01]}  h5 {[%clk 0:02:03]} 46. Nd2 {[%clk 0:01:00]}  Ke6 {[%clk 0:01:59]} 47. Nf1 {[%clk 0:00:58]}  Nc4 {[%clk 0:01:54]} 48. Bd3 {[%clk 0:00:57]}  g4 {[%clk 0:01:51]} 49. hxg4 {[%clk 0:00:55]}  hxg4 {[%clk 0:01:52]} 50. Ke2 {[%clk 0:00:54]}  Kf6 {[%clk 0:01:49]} 51. Kf2 {[%clk 0:00:52]}  Nb6 {[%clk 0:01:41]} 52. Nd2 {[%clk 0:00:48]}  Bc7 {[%clk 0:01:36]} 53. Nf1 {[%clk 0:00:47]}  Nc4 {[%clk 0:01:31]} 54. Ke2 {[%clk 0:00:45]}  Kg5 {[%clk 0:01:26]} 55. Kf2 {[%clk 0:00:45]}  Kh4 {[%clk 0:01:26]} 56. Bxf4 {[%clk 0:00:44]}  Bxf4 {[%clk 0:01:25]} 57. g3+ {[%clk 0:00:38]}  Kg5 {[%clk 0:00:54]} 58. Bxc4 {[%clk 0:00:35]}  Bxc4 {[%clk 0:00:51]} 59. gxf4+ {[%clk 0:00:35]}  Kxf4 {[%clk 0:00:51]} 60. Ng3 {[%clk 0:00:17]}  gxf3 {[%clk 0:00:51]} 61. Nh5+ {[%clk 0:00:12]}  Ke4 {[%clk 0:00:52]} 62. Ng7 {[%clk 0:00:12]}  Bf7 {[%clk 0:00:48]} 63. Kf1 {[%clk 0:00:08]}  Kf4 {[%clk 0:00:45]} 64. Kf2 {[%clk 0:00:09]}  Kg5 {[%clk 0:00:44]} 65. Kxf3 {[%clk 0:00:09]}  Kg6 {[%clk 0:00:45]} 0-1


[Site "https://www.chess.com"]

[Event "Titled Tuesday Blitz March 15 Late 2022"]
[White "Goryachkina, Aleksandra"]
[Black "Chigaev, Maksim"]
[WhiteFideId "4147103"]
[BlackFideId "4108116"]
[WhiteElo "2426"]
[BlackElo "2502"]
[Result "0-1"]
[Round "06"]
[TimeControl "180+1"]
[Date "2022.03.16"]
[WhiteClock "0:00:01"]
[BlackClock "0:00:09"]

1. e4 {[%clk 0:02:59]}  c5 {[%clk 0:02:57]} 2. Nf3 {[%clk 0:02:58]}  d6 {[%clk 0:02:58]} 3. c3 {[%clk 0:02:58]}  Nf6 {[%clk 0:02:57]} 4. Be2 {[%clk 0:02:58]}  g6 {[%clk 0:02:57]} 5. O-O {[%clk 0:02:58]}  Bg7 {[%clk 0:02:58]} 6. Bb5+ {[%clk 0:02:57]}  Bd7 {[%clk 0:02:53]} 7. Bxd7+ {[%clk 0:02:57]}  Nbxd7 {[%clk 0:02:53]} 8. Re1 {[%clk 0:02:56]}  O-O {[%clk 0:02:49]} 9. d4 {[%clk 0:02:56]}  Rc8 {[%clk 0:02:39]} 10. e5 {[%clk 0:02:28]}  Nd5 {[%clk 0:02:38]} 11. e6 {[%clk 0:02:13]}  fxe6 {[%clk 0:02:38]} 12. Ng5 {[%clk 0:02:13]}  cxd4 {[%clk 0:02:38]} 13. Nxe6 {[%clk 0:02:09]}  Qb6 {[%clk 0:02:38]} 14. Nxf8 {[%clk 0:02:07]}  Rxf8 {[%clk 0:02:39]} 15. Qb3 {[%clk 0:01:47]}  Qxb3 {[%clk 0:02:25]} 16. axb3 {[%clk 0:01:48]}  dxc3 {[%clk 0:02:03]} 17. bxc3 {[%clk 0:01:45]}  Nc5 {[%clk 0:01:53]} 18. Rxa7 {[%clk 0:01:39]}  Nxb3 {[%clk 0:01:28]} 19. Rxb7 {[%clk 0:01:14]}  Nc5 {[%clk 0:01:27]} 20. Ra7 {[%clk 0:01:05]}  Rb8 {[%clk 0:01:21]} 21. Ba3 {[%clk 0:00:52]}  Nd3 {[%clk 0:01:20]} 22. Rd1 {[%clk 0:00:51]}  Bxc3 {[%clk 0:01:11]} 23. Kf1 {[%clk 0:00:23]}  Bf6 {[%clk 0:00:50]} 24. Ra4 {[%clk 0:00:13]}  Ne5 {[%clk 0:00:41]} 25. Rxd5 {[%clk 0:00:07]}  Rxb1+ {[%clk 0:00:40]} 26. Ke2 {[%clk 0:00:07]}  Ra1 {[%clk 0:00:31]} 27. Rda5 {[%clk 0:00:04]}  Nc6 {[%clk 0:00:31]} 28. Ra8+ {[%clk 0:00:04]}  Kf7 {[%clk 0:00:31]} 29. Bb4 {[%clk 0:00:02]}  Rh1 {[%clk 0:00:27]} 30. Bd2 {[%clk 0:00:02]}  Rxh2 {[%clk 0:00:26]} 31. g3 {[%clk 0:00:02]}  Nd4+ {[%clk 0:00:26]} 32. Kf1 {[%clk 0:00:02]}  Rh5 {[%clk 0:00:15]} 33. Be3 {[%clk 0:00:02]}  Nc6 {[%clk 0:00:13]} 34. Kg2 {[%clk 0:00:02]}  Rd5 {[%clk 0:00:12]} 35. Rc8 {[%clk 0:00:01]}  Ne5 {[%clk 0:00:12]} 36. Raa8 {[%clk 0:00:02]}  h5 {[%clk 0:00:12]} 37. Rf8+ {[%clk 0:00:02]}  Ke6 {[%clk 0:00:12]} 38. Rg8 {[%clk 0:00:02]}  Kf5 {[%clk 0:00:11]} 39. Rgf8 {[%clk 0:00:02]}  Ng4 {[%clk 0:00:11]} 40. Kf3 {[%clk 0:00:01]}  Rd3 {[%clk 0:00:10]} 41. Ke2 {[%clk 0:00:02]}  Rb3 {[%clk 0:00:10]} 42. Ra5+ {[%clk 0:00:01]}  Ke6 {[%clk 0:00:09]} 0-1


[Site "https://www.chess.com"]

[Event "Titled Tuesday Blitz March 15 Late 2022"]
[White "Grischuk, Alexander"]
[Black "Van Foreest, Jorden"]
[WhiteFideId "4126025"]
[BlackFideId "1039784"]
[WhiteElo "2762"]
[BlackElo "2609"]
[Result "0-1"]
[Round "06"]
[TimeControl "180+1"]
[Date "2022.03.15"]
[WhiteClock "0:00:01"]
[BlackClock "0:00:34"]

1. e4 {[%clk 0:02:54]}  c5 {[%clk 0:02:56]} 2. Nc3 {[%clk 0:02:54]}  d6 {[%clk 0:02:57]} 3. Bb5+ {[%clk 0:02:52]}  Bd7 {[%clk 0:02:56]} 4. Bxd7+ {[%clk 0:02:52]}  Nxd7 {[%clk 0:02:57]} 5. d3 {[%clk 0:02:50]}  g6 {[%clk 0:02:56]} 6. f4 {[%clk 0:02:50]}  Bg7 {[%clk 0:02:56]} 7. Nf3 {[%clk 0:02:51]}  Ngf6 {[%clk 0:02:56]} 8. O-O {[%clk 0:02:51]}  O-O {[%clk 0:02:52]} 9. Qe1 {[%clk 0:02:50]}  e6 {[%clk 0:02:49]} 10. Kh1 {[%clk 0:02:47]}  d5 {[%clk 0:02:49]} 11. e5 {[%clk 0:02:41]}  Ng4 {[%clk 0:02:39]} 12. h3 {[%clk 0:02:31]}  Nh6 {[%clk 0:02:39]} 13. g4 {[%clk 0:02:31]}  Kh8 {[%clk 0:02:23]} 14. Ne2 {[%clk 0:02:26]}  Ng8 {[%clk 0:02:16]} 15. c3 {[%clk 0:02:17]}  f6 {[%clk 0:02:14]} 16. d4 {[%clk 0:02:17]}  Rc8 {[%clk 0:02:13]} 17. Ng3 {[%clk 0:02:02]}  Qb6 {[%clk 0:01:39]} 18. Be3 {[%clk 0:01:55]}  Qxb2 {[%clk 0:01:29]} 19. Rb1 {[%clk 0:01:54]}  Qxa2 {[%clk 0:01:30]} 20. Rxb7 {[%clk 0:01:54]}  Rcd8 {[%clk 0:01:20]} 21. Qb1 {[%clk 0:01:27]}  Qa6 {[%clk 0:01:15]} 22. Qb5 {[%clk 0:01:27]}  Qxb5 {[%clk 0:01:16]} 23. Rxb5 {[%clk 0:01:27]}  cxd4 {[%clk 0:01:10]} 24. cxd4 {[%clk 0:01:26]}  Rb8 {[%clk 0:01:06]} 25. Rfb1 {[%clk 0:00:30]}  Rxb5 {[%clk 0:01:04]} 26. Rxb5 {[%clk 0:00:31]}  Rb8 {[%clk 0:01:04]} 27. Ra5 {[%clk 0:00:29]}  Rb7 {[%clk 0:01:03]} 28. Kg2 {[%clk 0:00:26]}  Ne7 {[%clk 0:01:00]} 29. Ra6 {[%clk 0:00:26]}  Nb6 {[%clk 0:00:56]} 30. Bc1 {[%clk 0:00:22]}  Nc6 {[%clk 0:00:55]} 31. Ba3 {[%clk 0:00:20]}  Kg8 {[%clk 0:00:54]} 32. Bc5 {[%clk 0:00:19]}  Nb8 {[%clk 0:00:53]} 33. Ra1 {[%clk 0:00:18]}  N8d7 {[%clk 0:00:47]} 34. Bxb6 {[%clk 0:00:05]}  Nxb6 {[%clk 0:00:43]} 35. Ra6 {[%clk 0:00:04]}  Kf7 {[%clk 0:00:41]} 36. h4 {[%clk 0:00:04]}  Nd7 {[%clk 0:00:33]} 37. h5 {[%clk 0:00:04]}  Nb8 {[%clk 0:00:33]} 38. Ra2 {[%clk 0:00:04]}  Nc6 {[%clk 0:00:33]} 39. Ra6 {[%clk 0:00:01]}  Rb6 {[%clk 0:00:33]} 40. Ra2 {[%clk 0:00:01]}  a5 {[%clk 0:00:33]} 41. hxg6+ {[%clk 0:00:01]}  hxg6 {[%clk 0:00:34]} 0-1


[Site "https://www.chess.com"]

[Event "Titled Tuesday Blitz March 15 Late 2022"]
[White "Hakobyan, Aram"]
[Black "Hambleton, Aman"]
[WhiteFideId "13306677"]
[BlackFideId "2606577"]
[WhiteElo "2557"]
[BlackElo "2552"]
[Result "1-0"]
[Round "06"]
[TimeControl "180+1"]
[Date "2022.03.15"]
[WhiteClock "0:01:12"]
[BlackClock "0:00:01"]

1. e4 {[%clk 0:03:00]}  c5 {[%clk 0:02:44]} 2. Nc3 {[%clk 0:03:00]}  e6 {[%clk 0:02:41]} 3. Nf3 {[%clk 0:03:00]}  a6 {[%clk 0:02:21]} 4. d4 {[%clk 0:03:01]}  cxd4 {[%clk 0:02:20]} 5. Nxd4 {[%clk 0:03:02]}  Qc7 {[%clk 0:02:16]} 6. Be2 {[%clk 0:03:01]}  Nc6 {[%clk 0:02:15]} 7. O-O {[%clk 0:03:01]}  Nf6 {[%clk 0:02:14]} 8. Be3 {[%clk 0:03:02]}  Bb4 {[%clk 0:02:07]} 9. Nxc6 {[%clk 0:03:01]}  bxc6 {[%clk 0:02:06]} 10. f4 {[%clk 0:03:01]}  Bxc3 {[%clk 0:01:04]} 11. bxc3 {[%clk 0:03:02]}  Nxe4 {[%clk 0:01:03]} 12. Bd3 {[%clk 0:03:00]}  Nf6 {[%clk 0:00:43]} 13. Qf3 {[%clk 0:02:53]}  Rb8 {[%clk 0:00:25]} 14. Qg3 {[%clk 0:02:53]}  Kf8 {[%clk 0:00:08]} 15. c4 {[%clk 0:02:47]}  c5 {[%clk 0:00:06]} 16. Bd2 {[%clk 0:02:23]}  Bb7 {[%clk 0:00:06]} 17. Bc3 {[%clk 0:02:23]}  Rg8 {[%clk 0:00:05]} 18. Rab1 {[%clk 0:02:20]}  Bc6 {[%clk 0:00:04]} 19. Ba5 {[%clk 0:02:13]}  Qc8 {[%clk 0:00:03]} 20. f5 {[%clk 0:02:13]}  Rxb1 {[%clk 0:00:02]} 21. Rxb1 {[%clk 0:02:14]}  Ke7 {[%clk 0:00:02]} 22. Bc7 {[%clk 0:02:13]}  Ne8 {[%clk 0:00:02]} 23. Bf4 {[%clk 0:02:07]}  d6 {[%clk 0:00:02]} 24. fxe6 {[%clk 0:01:57]}  fxe6 {[%clk 0:00:03]} 25. Rf1 {[%clk 0:01:39]}  h6 {[%clk 0:00:03]} 26. Bg6 {[%clk 0:01:15]}  Qd7 {[%clk 0:00:02]} 27. Bxe8 {[%clk 0:01:14]}  Kxe8 {[%clk 0:00:01]} 28. Bxd6 {[%clk 0:01:14]}  e5 {[%clk 0:00:01]} 29. Qxe5+ {[%clk 0:01:14]}  Kd8 {[%clk 0:00:01]} 30. Rb1 {[%clk 0:01:12]}  Kc8 {[%clk 0:00:01]} 31. Rb8# {[%clk 0:01:12]} 1-0


[Site "https://www.chess.com"]

[Event "Titled Tuesday Blitz March 15 Late 2022"]
[White "Ibarra Jerez, Jose Carlos"]
[Black "Melkumyan, Hrant"]
[WhiteFideId "2226332"]
[BlackFideId "13302485"]
[WhiteElo "2626"]
[BlackElo "2604"]
[Result "0-1"]
[Round "06"]
[TimeControl "180+1"]
[Date "2022.03.15"]
[WhiteClock "0:00:03"]
[BlackClock "0:00:07"]

1. e4 {[%clk 0:03:00]}  c6 {[%clk 0:02:56]} 2. Nf3 {[%clk 0:02:59]}  d5 {[%clk 0:02:57]} 3. d3 {[%clk 0:02:58]}  g6 {[%clk 0:02:57]} 4. Qe2 {[%clk 0:02:55]}  Bg7 {[%clk 0:02:56]} 5. g3 {[%clk 0:02:56]}  d4 {[%clk 0:02:49]} 6. e5 {[%clk 0:02:37]}  c5 {[%clk 0:02:48]} 7. Bg2 {[%clk 0:02:37]}  Nc6 {[%clk 0:02:48]} 8. Bf4 {[%clk 0:02:36]}  Be6 {[%clk 0:02:26]} 9. O-O {[%clk 0:02:36]}  h6 {[%clk 0:02:21]} 10. h4 {[%clk 0:02:35]}  Qd7 {[%clk 0:02:18]} 11. Nbd2 {[%clk 0:02:34]}  Rc8 {[%clk 0:02:15]} 12. Rfe1 {[%clk 0:02:32]}  Bd5 {[%clk 0:02:06]} 13. c4 {[%clk 0:02:25]}  dxc3 {[%clk 0:01:59]} 14. bxc3 {[%clk 0:02:26]}  e6 {[%clk 0:01:55]} 15. Nc4 {[%clk 0:02:02]}  Bxc4 {[%clk 0:01:48]} 16. dxc4 {[%clk 0:02:03]}  Nge7 {[%clk 0:01:48]} 17. Nd2 {[%clk 0:01:53]}  O-O {[%clk 0:01:45]} 18. Rad1 {[%clk 0:01:44]}  Qc7 {[%clk 0:01:42]} 19. g4 {[%clk 0:01:42]}  g5 {[%clk 0:01:38]} 20. hxg5 {[%clk 0:01:39]}  Ng6 {[%clk 0:01:39]} 21. Bg3 {[%clk 0:01:34]}  Bxe5 {[%clk 0:01:19]} 22. Bxe5 {[%clk 0:01:20]}  Qxe5 {[%clk 0:01:15]} 23. Bxc6 {[%clk 0:01:01]}  Qxe2 {[%clk 0:01:05]} 24. Rxe2 {[%clk 0:01:02]}  Rxc6 {[%clk 0:01:05]} 25. Ne4 {[%clk 0:01:02]}  hxg5 {[%clk 0:01:00]} 26. Rd7 {[%clk 0:00:45]}  Rb6 {[%clk 0:00:42]} 27. Nxg5 {[%clk 0:00:38]}  Rb1+ {[%clk 0:00:38]} 28. Kh2 {[%clk 0:00:38]}  Rc1 {[%clk 0:00:39]} 29. Ne4 {[%clk 0:00:34]}  Kg7 {[%clk 0:00:31]} 30. Ng3 {[%clk 0:00:19]}  Nf4 {[%clk 0:00:25]} 31. Nh5+ {[%clk 0:00:18]}  Nxh5 {[%clk 0:00:25]} 32. gxh5 {[%clk 0:00:19]}  Kf6 {[%clk 0:00:20]} 33. Re3 {[%clk 0:00:18]}  Rh8 {[%clk 0:00:10]} 34. Rf3+ {[%clk 0:00:18]}  Ke5 {[%clk 0:00:10]} 35. Rdxf7 {[%clk 0:00:13]}  Rxh5+ {[%clk 0:00:10]} 36. Kg2 {[%clk 0:00:14]}  Rg5+ {[%clk 0:00:10]} 37. Rg3 {[%clk 0:00:12]}  Rxg3+ {[%clk 0:00:10]} 38. fxg3 {[%clk 0:00:12]}  Rxc3 {[%clk 0:00:10]} 39. Rxb7 {[%clk 0:00:12]}  Rc2+ {[%clk 0:00:08]} 40. Kf3 {[%clk 0:00:13]}  Rxa2 {[%clk 0:00:09]} 41. Rc7 {[%clk 0:00:09]}  Ra3+ {[%clk 0:00:09]} 42. Kf2 {[%clk 0:00:05]}  Kd4 {[%clk 0:00:10]} 43. g4 {[%clk 0:00:05]}  e5 {[%clk 0:00:08]} 44. g5 {[%clk 0:00:05]}  Ra2+ {[%clk 0:00:08]} 45. Kg3 {[%clk 0:00:05]}  Ra1 {[%clk 0:00:09]} 46. Kg2 {[%clk 0:00:05]}  Ra2+ {[%clk 0:00:09]} 47. Kg3 {[%clk 0:00:05]}  Ra1 {[%clk 0:00:06]} 48. Kg2 {[%clk 0:00:05]}  Rb1 {[%clk 0:00:06]} 49. g6 {[%clk 0:00:05]}  Rb6 {[%clk 0:00:06]} 50. g7 {[%clk 0:00:04]}  Rg6+ {[%clk 0:00:06]} 51. Kf3 {[%clk 0:00:05]}  a6 {[%clk 0:00:07]} 52. Rd7+ {[%clk 0:00:04]}  Kxc4 {[%clk 0:00:07]} 53. Ke4 {[%clk 0:00:05]}  Rg5 {[%clk 0:00:07]} 54. Ra7 {[%clk 0:00:03]}  a5 {[%clk 0:00:07]} 55. Ra6 {[%clk 0:00:02]}  Rxg7 {[%clk 0:00:07]} 56. Rxa5 {[%clk 0:00:03]}  Rd7 {[%clk 0:00:06]} 57. Kxe5 {[%clk 0:00:03]}  Kb4 {[%clk 0:00:07]} 58. Ra1 {[%clk 0:00:03]}  c4 {[%clk 0:00:07]} 59. Rd1 {[%clk 0:00:03]}  Rxd1 {[%clk 0:00:07]} 0-1


[Site "https://www.chess.com"]

[Event "Titled Tuesday Blitz March 15 Late 2022"]
[White "Jaferian, Koosha"]
[Black "Fiorito, Fabian"]
[WhiteFideId "12507440"]
[BlackFideId "100200"]
[WhiteElo "2030"]
[BlackElo "2395"]
[Result "1-0"]
[Round "06"]
[TimeControl "180+1"]
[Date "2022.03.16"]
[WhiteClock "0:00:15"]
[BlackClock "0:00:03"]

1. Nf3 {[%clk 0:02:59]}  Nf6 {[%clk 0:02:57]} 2. b3 {[%clk 0:02:59]}  g6 {[%clk 0:02:54]} 3. Bb2 {[%clk 0:02:58]}  Bg7 {[%clk 0:02:54]} 4. g3 {[%clk 0:02:59]}  O-O {[%clk 0:02:55]} 5. Bg2 {[%clk 0:02:59]}  d5 {[%clk 0:02:55]} 6. c4 {[%clk 0:02:59]}  c6 {[%clk 0:02:55]} 7. O-O {[%clk 0:02:59]}  e6 {[%clk 0:02:53]} 8. d4 {[%clk 0:02:59]}  b5 {[%clk 0:02:53]} 9. Nbd2 {[%clk 0:02:59]}  a5 {[%clk 0:02:52]} 10. Qc2 {[%clk 0:02:52]}  a4 {[%clk 0:02:50]} 11. e4 {[%clk 0:02:52]}  bxc4 {[%clk 0:02:38]} 12. bxc4 {[%clk 0:02:51]}  a3 {[%clk 0:02:31]} 13. Bc3 {[%clk 0:02:50]}  dxc4 {[%clk 0:02:30]} 14. Nxc4 {[%clk 0:02:50]}  Ba6 {[%clk 0:02:29]} 15. Bb4 {[%clk 0:02:44]}  Re8 {[%clk 0:02:26]} 16. Rfe1 {[%clk 0:02:39]}  Bxc4 {[%clk 0:02:17]} 17. Qxc4 {[%clk 0:02:39]}  Nbd7 {[%clk 0:02:14]} 18. Qd3 {[%clk 0:02:14]}  Ra4 {[%clk 0:01:55]} 19. Bxa3 {[%clk 0:02:14]}  Qa8 {[%clk 0:01:52]} 20. Bd6 {[%clk 0:02:02]}  Rxa2 {[%clk 0:01:45]} 21. Rxa2 {[%clk 0:02:03]}  Qxa2 {[%clk 0:01:45]} 22. Rc1 {[%clk 0:02:03]}  Rc8 {[%clk 0:01:39]} 23. h3 {[%clk 0:01:47]}  Ne8 {[%clk 0:01:31]} 24. Bf4 {[%clk 0:01:42]}  h6 {[%clk 0:01:27]} 25. Rc2 {[%clk 0:01:38]}  Qa1+ {[%clk 0:01:14]} 26. Kh2 {[%clk 0:01:38]}  Nef6 {[%clk 0:01:08]} 27. Ne5 {[%clk 0:01:25]}  Nxe5 {[%clk 0:00:52]} 28. Bxe5 {[%clk 0:01:25]}  Rd8 {[%clk 0:00:36]} 29. Qf3 {[%clk 0:00:56]}  Ne8 {[%clk 0:00:24]} 30. Bxg7 {[%clk 0:00:46]}  Nxg7 {[%clk 0:00:25]} 31. Rxc6 {[%clk 0:00:41]}  Qxd4 {[%clk 0:00:23]} 32. Rc7 {[%clk 0:00:42]}  Rd7 {[%clk 0:00:21]} 33. Rc8+ {[%clk 0:00:38]}  Kh7 {[%clk 0:00:20]} 34. Qa3 {[%clk 0:00:34]}  Qd6 {[%clk 0:00:19]} 35. Qa8 {[%clk 0:00:32]}  g5 {[%clk 0:00:18]} 36. e5 {[%clk 0:00:19]}  Qxe5 {[%clk 0:00:16]} 37. Rh8+ {[%clk 0:00:19]}  Kg6 {[%clk 0:00:16]} 38. Be4+ {[%clk 0:00:20]}  f5 {[%clk 0:00:16]} 39. Bg2 {[%clk 0:00:18]}  Rf7 {[%clk 0:00:15]} 40. Qg8 {[%clk 0:00:16]}  Qc7 {[%clk 0:00:12]} 41. Qh7+ {[%clk 0:00:16]}  Kf6 {[%clk 0:00:13]} 42. Qxh6+ {[%clk 0:00:17]}  Ke5 {[%clk 0:00:13]} 43. Qxg5 {[%clk 0:00:17]}  Qc4 {[%clk 0:00:09]} 44. Rd8 {[%clk 0:00:15]}  Rc7 {[%clk 0:00:03]} 45. f4+ {[%clk 0:00:15]} 1-0


[Site "https://www.chess.com"]

[Event "Titled Tuesday Blitz March 15 Late 2022"]
[White "Khanin, Semen"]
[Black "Zomorrodian, Eilia"]
[WhiteFideId "4111990"]
[BlackFideId "12551805"]
[WhiteElo "2442"]
[BlackElo "2098"]
[Result "1-0"]
[Round "06"]
[TimeControl "180+1"]
[Date "2022.03.15"]
[WhiteClock "0:00:56"]
[BlackClock "0:00:10"]

1. e4 {[%clk 0:02:51]}  c5 {[%clk 0:02:58]} 2. c3 {[%clk 0:02:46]}  Nf6 {[%clk 0:02:56]} 3. e5 {[%clk 0:02:44]}  Nd5 {[%clk 0:02:56]} 4. Bc4 {[%clk 0:02:43]}  Nb6 {[%clk 0:02:56]} 5. Bb3 {[%clk 0:02:42]}  g6 {[%clk 0:02:55]} 6. Nf3 {[%clk 0:02:41]}  Bg7 {[%clk 0:02:55]} 7. h4 {[%clk 0:02:39]}  c4 {[%clk 0:02:51]} 8. Bc2 {[%clk 0:02:39]}  d5 {[%clk 0:02:51]} 9. h5 {[%clk 0:02:39]}  Bg4 {[%clk 0:02:47]} 10. d4 {[%clk 0:02:31]}  cxd3 {[%clk 0:02:44]} 11. Qxd3 {[%clk 0:02:31]}  Bxf3 {[%clk 0:02:00]} 12. Qxf3 {[%clk 0:02:30]}  Bxe5 {[%clk 0:02:00]} 13. Bf4 {[%clk 0:02:22]}  Qd6 {[%clk 0:01:54]} 14. hxg6 {[%clk 0:02:10]}  Bxf4 {[%clk 0:01:43]} 15. Rxh7 {[%clk 0:02:03]}  Qe5+ {[%clk 0:01:29]} 16. Kf1 {[%clk 0:02:03]}  Rxh7 {[%clk 0:01:12]} 17. gxh7 {[%clk 0:02:02]}  Nc6 {[%clk 0:01:11]} 18. Qxf4 {[%clk 0:02:02]}  Qxf4 {[%clk 0:01:08]} 19. h8=Q+ {[%clk 0:02:02]}  Kd7 {[%clk 0:01:08]} 20. Qh3+ {[%clk 0:02:00]}  e6 {[%clk 0:01:08]} 21. Na3 {[%clk 0:01:58]}  Qf6 {[%clk 0:00:52]} 22. Ke2 {[%clk 0:01:31]}  Qe5+ {[%clk 0:00:48]} 23. Qe3 {[%clk 0:01:30]}  Qh5+ {[%clk 0:00:47]} 24. Qf3 {[%clk 0:01:28]}  Qe5+ {[%clk 0:00:46]} 25. Kf1 {[%clk 0:01:28]}  Rh8 {[%clk 0:00:46]} 26. g3 {[%clk 0:01:26]}  Qg7 {[%clk 0:00:43]} 27. Kg2 {[%clk 0:01:15]}  Ne5 {[%clk 0:00:39]} 28. Qf4 {[%clk 0:01:13]}  Ng4 {[%clk 0:00:33]} 29. Nb5 {[%clk 0:01:10]}  Rh2+ {[%clk 0:00:19]} 30. Kg1 {[%clk 0:01:09]}  Kc6 {[%clk 0:00:12]} 31. Qc7+ {[%clk 0:00:57]}  Kxb5 {[%clk 0:00:12]} 32. a4+ {[%clk 0:00:57]}  Ka6 {[%clk 0:00:09]} 33. Bd3+ {[%clk 0:00:57]}  Nc4 {[%clk 0:00:10]} 34. Bxc4+ {[%clk 0:00:56]}  dxc4 {[%clk 0:00:10]} 35. Qxc4+ {[%clk 0:00:56]} 1-0


[Site "https://www.chess.com"]

[Event "Titled Tuesday Blitz March 15 Late 2022"]
[White "Kohler, Aran"]
[Black "Marson, Juan Miguel"]
[WhiteFideId "1002856"]
[BlackFideId "106585"]
[WhiteElo "2291"]
[BlackElo "2053"]
[Result "0-1"]
[Round "06"]
[TimeControl "180+1"]
[Date "2022.03.16"]
[WhiteClock "0:00:03"]
[BlackClock "0:00:17"]

1. d4 {[%clk 0:02:56]}  Nf6 {[%clk 0:02:59]} 2. Nf3 {[%clk 0:02:56]}  g6 {[%clk 0:03:00]} 3. Bg5 {[%clk 0:02:56]}  Bg7 {[%clk 0:02:59]} 4. Nbd2 {[%clk 0:02:56]}  d5 {[%clk 0:02:58]} 5. e3 {[%clk 0:02:55]}  c5 {[%clk 0:02:56]} 6. c3 {[%clk 0:02:55]}  Nc6 {[%clk 0:02:56]} 7. Bd3 {[%clk 0:02:54]}  O-O {[%clk 0:02:56]} 8. a4 {[%clk 0:02:51]}  b6 {[%clk 0:02:54]} 9. h4 {[%clk 0:02:46]}  h6 {[%clk 0:02:53]} 10. h5 {[%clk 0:02:42]}  hxg5 {[%clk 0:02:51]} 11. hxg6 {[%clk 0:02:41]}  fxg6 {[%clk 0:02:49]} 12. Bxg6 {[%clk 0:02:35]}  Bg4 {[%clk 0:02:34]} 13. Qc2 {[%clk 0:02:32]}  Re8 {[%clk 0:01:13]} 14. Nxg5 {[%clk 0:02:21]}  e5 {[%clk 0:01:06]} 15. dxc5 {[%clk 0:02:07]}  e4 {[%clk 0:00:47]} 16. Bxe8 {[%clk 0:02:03]}  Qxe8 {[%clk 0:00:39]} 17. cxb6 {[%clk 0:01:30]}  Ne5 {[%clk 0:00:34]} 18. b7 {[%clk 0:01:17]}  Rb8 {[%clk 0:00:32]} 19. Nh3 {[%clk 0:01:05]}  Nd3+ {[%clk 0:00:29]} 20. Kf1 {[%clk 0:01:05]}  Bxh3 {[%clk 0:00:28]} 21. Rxh3 {[%clk 0:01:03]}  Ng4 {[%clk 0:00:28]} 22. Qb3 {[%clk 0:00:34]}  Qf7 {[%clk 0:00:23]} 23. f3 {[%clk 0:00:34]}  Nxe3+ {[%clk 0:00:20]} 24. Kg1 {[%clk 0:00:34]}  Rxb7 {[%clk 0:00:17]} 25. Qa3 {[%clk 0:00:20]}  Rxb2 {[%clk 0:00:17]} 26. Nxe4 {[%clk 0:00:13]}  Rxg2+ {[%clk 0:00:17]} 27. Kh1 {[%clk 0:00:13]}  dxe4 {[%clk 0:00:17]} 28. Rb1 {[%clk 0:00:03]}  Nf2# {[%clk 0:00:17]} 0-1


[Site "https://www.chess.com"]